Cogmind - Beta 14 *** ADVENTURER MODE // 2024.08.07 @ 18:28:51 Player: Vexic Result: Self-destructed Performance ------------- Evolutions (1) 500 Regions Visited (2) 400 Robots Destroyed (29) 145 Value Destroyed (612) 612 Prototype IDs (0) 0 Alien Tech Used (0) 0 Bonus (0) 0 TOTAL SCORE: 1657 Bonus ------- None Cogmind --------- Core Integrity 362/400 Matter 300/300 Energy 265/265 System Corruption 0% Temperature Cool (63) Movement Treading (160) Location -9/Materials Parts ------- > --- POWER (1) -------- Improved Ion Engine > --- PROPULSION (2) --- Light Treads Light Treads > --- UTILITY (4) ------ Improved Heat Sink Medium Storage Unit Structural Scanner Sensor Array > --- WEAPON (2) ------- Particle Gun Particle Gun > --- INVENTORY (10) --- Huge Storage Unit Hacking Suite Recalibrator EM Pulse Gun Grenade Launcher Datajack Peak State ------------ > --- POWER ------------ Improved Ion Engine > --- PROPULSION ------- Light Treads Light Treads > --- UTILITY ---------- Improved Heat Sink Medium Storage Unit Structural Scanner Sensor Array > --- WEAPON ----------- Particle Gun Particle Gun > --- INVENTORY -------- Huge Storage Unit Hacking Suite Recalibrator EM Pulse Gun Grenade Launcher Datajack [Rating: 15] Favorites ----------- Power Ion Engine Engine Ion Engine Propulsion Light Treads Treads Light Treads Utility Medium Storage Unit Device Structural Scanner Storage Medium Storage Unit Processor Machine Analyzer Weapon Particle Gun Energy Gun Particle Gun Ballistic Gun Light Assault Rifle Build | -11 -10 -9 ------- Run | Yrd Mat Mat Slots Evolved 2 | . . 2 Power . | . . . Propulsion . | . . . Utility 2 | . . 2 Weapon . | . . . Parts Attached 19 | 6 8 5 Power 2 | 1 1 . Engine 2 | 1 1 . Core . | . . . Reactor . | . . . Propulsion 2 | 2 . . Treads 2 | 2 . . Leg . | . . . Wheel . | . . . Hover . | . . . Flight . | . . . Utility 9 | 1 5 3 Device 4 | . 2 2 Storage 4 | 1 3 . Processor 1 | . . 1 Hackware . | . . . Protection . | . . . Artifact . | . . . Weapon 6 | 2 2 2 Energy Gun 5 | 1 2 2 Energy Cannon . | . . . Ballistic Gun 1 | 1 . . Ballistic Cannon . | . . . Launcher . | . . . Special Weapon . | . . . Impact Weapon . | . . . Slashing Weapon . | . . . Piercing Weapon . | . . . Special Melee Weapon . | . . . Unidentified Prototypes . | . . . Parts Lost . | . . . Power . | . . . Propulsion . | . . . Utility . | . . . Weapon . | . . . Highest Loss Streak . | . . . To Critical Strikes . | . . . Average Slot Usage (%) 97 | . 97 100 Engine 13 | . 14 11 Treads 26 | . 28 22 Device 14 | . 11 28 Storage 13 | . 14 11 Energy Gun 22 | . 22 22 Ballistic Gun 4 | . 4 . Peak Build Rating 15 | 6 10 15 Average Rating 9 | 4 8 13 On Entrance 5 | . 6 10 Naked Turns . | . . . Heaviest Build 26 | 13 23 26 Greatest Support 46 | 40 46 40 Greatest Overweight (x) . | . . . Average Overweight (x) . | . . . Largest Inventory Capacity 25 | 8 25 10 Average Capacity 9 | 6 9 10 Most Carried 8 | . 8 6 Average Carried 4 | . 4 5 Final Capacity 10 | 8 10 10 Final Carried 7 | . 7 6 Class Distribution -------------------- 81% | Mutant 18% | Scavenger-Mutant Dominant Class ---------------- Mutant | -10/Materials Scavenger-Mutant | -9/Materials Resources | -11 -10 -9 ----------- Run | Yrd Mat Mat Matter Collected 467 | 214 203 50 Remotely . | . . . Salvage Created 1152 | . 675 477 Parts 64 | . 41 23 Haulers Intercepted 4 | . 2 2 Recyclers Shooed 1 | . 1 . Parts Field Recycled . | . . . Retrieved Matter . | . . . Parts Self-Destructed . | . . . Prevented . | . . . Kills | -11 -10 -9 ------- Run | Yrd Mat Mat Combat Hostiles Destroyed 18 | . 13 5 Guns 18 | . 13 5 Classes Destroyed 8 | . 6 2 Hauler 4 | . 2 2 Recycler 2 | . 1 1 Mechanic 2 | . 1 1 Operator 1 | . . 1 Watcher 2 | . 2 . Swarmer 6 | . 6 . Grunt 11 | . 7 4 Sentry 1 | . . 1 Best Kill Streak 5 | . 5 4 Combat Bots Only 4 | . 3 4 Max Kills in Single Turn 2 | . 2 1 Gunslinging 1 | . 1 . Exploded . | . . . Melee . | . . . Uniques/NPCs Destroyed . | . . . Combat | -11 -10 -9 -------- Run | Yrd Mat Mat Hostile Shots Fired 83 | . 39 44 Missed 22 | . 11 11 Damage Taken 482 | . 240 242 Core 55 | . 17 38 Absorbed by Shields . | . . . Ignored by Resistances 153 | . 73 80 Core Remaining (%) 96 | 100 93 . Volleys Fired 65 | . 44 21 Largest 2 | . 2 2 Hottest 130 | . 115 130 Shots Fired 130 | . 88 42 Gun 130 | . 88 42 Cannon . | . . . Launcher . | . . . Special . | . . . Kinetic 21 | . 21 . Thermal 88 | . 46 42 Explosive . | . . . Electromagnetic 21 | . 21 . Robot Hit Streak 14 | . 12 14 Robot Miss Streak 3 | . 2 3 Penetration Max . | . . . Secondary Targets 4 | . 2 2 Max Gunslinging Chain 1 | . 1 1 Shots Hit Robots 100 | . 69 31 Core Hits 47 | . 31 16 Critical Kills 1 | . 1 . Critical Parts Destroyed . | . . . Critical Strikes 8 | . 6 2 Burn 7 | . 5 2 Destroy 1 | . 1 . Melee Attacks . | . . . Impact . | . . . Slashing . | . . . Piercing . | . . . Sneak Attacks . | . . . Combat Hostiles . | . . . Follow-up Attacks . | . . . Damage Inflicted 1383 | . 868 515 Guns 1376 | . 861 515 Cannons . | . . . Explosions . | . . . Melee . | . . . Ramming 7 | . 7 . Kinetic 134 | . 134 . Thermal 1014 | . 499 515 Explosive . | . . . Electromagnetic 228 | . 228 . Impact . | . . . Slashing . | . . . Piercing . | . . . Highest Corruption . | . . . Average Corruption . | . . . Corruption Purged . | . . . Corruption Blocked . | . . . Overload Shots . | . . . Overflow Damage . | . . . Projectiles . | . . . Explosions . | . . . Melee . | . . . Knockbacks . | . . . Impact . | . . . Kinetic . | . . . Secondary . | . . . Self-Inflicted Damage . | . . . Shots . | . . . Rammed 2 | . 2 . Targets Rammed 2 | . 2 . Kicked . | . . . Crushed . | . . . Highest Temperature 324 | . 324 276 Average Temperature 82 | . 81 86 Received Heat Transfer 237 | . 162 75 Effects 1 | . 1 . Matter Decay 1 | . 1 . Siege Activations . | . . . Robots Corrupted 1 | . 1 . Combat Hostiles . | . . . Parts Fried 1 | . 1 . Impact Corruptions . | . . . Robots Melted . | . . . Combat Hostiles . | . . . Parts Melted 2 | . 1 1 Heat Transferred 3108 | . 1702 1406 Parts Sabotaged . | . . . Parts Stolen . | . . . Parts Stripped . | . . . Power Chain Reactions . | . . . Alert | -11 -10 -9 ------- Run | Yrd Mat Mat Peak Influence 218 | . 218 172 Initial . | . . . Average 85 | . 90 93 Maximum Alert Level 1 | . 1 . Low Security (%) 99 | 100 98 100 Level 1 . | . 1 . Level 2 . | . . . Level 3 . | . . . Level 4 . | . . . Level 5 . | . . . High Security . | . . . Max Security . | . . . Squads Dispatched 2 | . 1 1 Investigation 1 | . 1 . Extermination . | . . . Reinforcement 1 | . . 1 Assault . | . . . Garrison . | . . . Intercept . | . . . Searches Triggered . | . . . Construction Impeded . | . . . Haulers Reinforced . | . . . Active Scanning Responses . | . . . Cargo Convoy Interrupts . | . . . Stealth | -11 -10 -9 --------- Run | Yrd Mat Mat Distress Signals 1 | . 1 . Communications Jammed . | . . . Distress Signals . | . . . Times Spotted 33 | . 20 13 Peak Tracking Total 5 | . 4 5 Tactical Retreats 1 | . 1 . Traps | -11 -10 -9 ------- Run | Yrd Mat Mat Traps Triggered . | . . . Indirectly . | . . . Trap Hack Attempts . | . . . Triggered . | . . . Disarmed . | . . . Reprogrammed . | . . . Reused . | . . . Traps Extracted . | . . . Installed . | . . . Triggered . | . . . Machines | -11 -10 -9 ---------- Run | Yrd Mat Mat Machines Disabled . | . . . Max in Single Turn . | . . . Machines Repaired . | . . . Machines Dismantled . | . . . Machines Sabotaged . | . . . Overloaded Fab Kills . | . . . Hacking | -11 -10 -9 --------- Run | Yrd Mat Mat Machines Accessed 6 | . 5 1 Terminals 6 | . 5 1 Fabricators . | . . . Repair Stations . | . . . Recycling Units . | . . . Scanalyzers . | . . . Garrison Access . | . . . Total Hacks 15 | . 12 3 Successful 7 | . 5 2 Failed 8 | . 7 1 Catastrophic 2 | . 1 1 Database Lockouts . | . . . Manual 4 | . 4 . Terminals 15 | . 12 3 Fabricators . | . . . Repair Stations . | . . . Recycling Units . | . . . Scanalyzers . | . . . Garrison Access . | . . . Terminal Hacks 7 | . 5 2 Record 1 | . . 1 Branch Access Points 1 | . 1 . Repair Station Index 1 | . . 1 Locate Traps 1 | . 1 . Patrol Status 1 | . 1 . Registered Components 1 | . 1 . Zone Layout 1 | . 1 . Fabricator Hacks . | . . . Repair Station Hacks . | . . . Recycling Unit Hacks . | . . . Scanalyzer . | . . . Garrison Access Hacks . | . . . Unauthorized Hacks . | . . . Terminals . | . . . Fabricators . | . . . Repair Stations . | . . . Recycling Units . | . . . Scanalyzers . | . . . Garrison Access . | . . . Data Cores Recovered . | . . . Used . | . . . Hacking Detections 6 | . 5 1 Full Trace Events 1 | . 1 . Feedback Events . | . . . Feedback Blocked . | . . . Robot Schematics Acquired . | . . . Robots Built . | . . . Authchips . | . . . Time . | . . . Total Robot Build Rating . | . . . Part Schematics Acquired . | . . . Parts Built . | . . . Authchips . | . . . Time . | . . . Total Part Build Rating . | . . . Parts Repaired . | . . . Time . | . . . Parts Recycled . | . . . Recycled Matter . | . . . Retrieved Matter . | . . . Retrieved Components . | . . . Parts Scanalyzed . | . . . Part Schematics Acquired . | . . . Parts Damaged . | . . . Bothacking | -11 -10 -9 ------------ Run | Yrd Mat Mat Used RIF Installer . | . . . Robots Hacked . | . . . Non-combat . | . . . Combat . | . . . Robot Hacks Applied . | . . . Relay Couplers Released . | . . . Fabnet Peak Effective % . | . . . Robots Rewired . | . . . Allies Hacked . | . . . Hacks Repelled . | . . . Allies | -11 -10 -9 -------- Run | Yrd Mat Mat Total Allies . | . . . Largest Group . | . . . Highest-Rated Group . | . . . Highest-Rated Ally . | . . . Total Orders . | . . . Ally Attacks . | . . . Total Damage . | . . . Kills . | . . . Allies Corrupted . | . . . Allies Melted . | . . . Intel | -11 -10 -9 ------- Run | Yrd Mat Mat Robot Analysis Total . | . . . Derelict Logs Recovered . | . . . Drone Launches . | . . . Drone Recoveries . | . . . Exploration | -11 -10 -9 ------------- Run | Yrd Mat Mat Turns Passed 1073 | 66 820 187 Spaces Moved 505 | 37 396 72 Core 1 | 1 . . Treads 504 | 36 396 72 Legs . | . . . Wheels . | . . . Hover . | . . . Flight . | . . . Fastest Speed 50 | 50 160 160 Average Speed 159 | 157 160 160 Slowest Speed 160 | 160 160 160 Overloaded Moves . | . . . Propulsion Burnouts . | . . . Robots Hopped . | . . . Cave-ins Triggered . | . . . Exploration Rate (%) 27 | 3 69 10 Regions Visited 2 Branch Regions . Pre-discovered Areas . | . . . Known Exits Taken . | . . . Unknown Exits Taken 2 | 1 1 . Scrap Searched . | . . . Spaces Dug . | . . . Terrain Destroyed . | . . . Melee . | . . . Projectile . | . . . AOE . | . . . Terrain Rammed . | . . . Walls Destroyed . | . . . Machines Disabled . | . . . Actions | -11 -10 -9 --------- Run | Yrd Mat Mat Total 638 | 42 495 101 Wait 37 | . 37 . Move 503 | 36 395 72 Hop . | . . . Pick Up 7 | . 6 1 Fast Attach 9 | 6 2 1 Attach 3 | . . 3 Detach . | . . . Swap 7 | . 6 1 Drop 5 | . 3 2 Fire 65 | . 44 21 Melee . | . . . Ram . | . . . Kick . | . . . Crush 2 | . 2 . Escape Stasis . | . . . Rewire . | . . . Trap . | . . . Miscellaneous . | . . . Route ------- -11/Scrapyard -10/Materials (discovered 4 exits: *Mat x2 / Min x2) -9/Materials History --------- Turn | Location | Event 8 | -11/Scrapyard | Discovered new exit (range 14) 67 | -11/Scrapyard | Entered Materials 215 | -10/Materials | Discovered new exit (range 16) 311 | -10/Materials | Build established: Mutant 767 | -10/Materials | Derelicts attacked the area 828 | -10/Materials | Discovered new exit (range 11) 849 | -10/Materials | Identified exit to Mines 887 | -10/Materials | Entered another Materials area 887 | -9/Materials | Evolved 2 slots: Utility x2 1074 | -9/Materials | Self-destructed Last Messages --------------- 00981_ R-06 Scavenger destroyed. 00982_ K-01 Serf cleans the Terminal. 00984_ A-02 Transporter destroyed. 00985_ K-01 Serf cleans the Terminal. 00986_ U-05 Engineer builds a Door. 00997_ K-01 Serf collects debris. 01000_ O-16 Technician: "IFF HANDSHAKE FAILED. SECURING TERMINAL." 01001_ K-01 Serf collects debris. 01007_ ALERT: Hostiles spotted, dispatching reinforcements to Terminal M003. 01023_ Y-45 Defender suffers critical hit (Burn). 01026_ Y-45 Defender destroyed. 01029_ Destroyed Lgt. Ion Engine. 01032_ O-16 Technician destroyed. 01040_ Acquired Hacking Suite. 01054_ A-02 Transporter destroyed. 01063_ R-06 Scavenger collects Prototype Flight Unit. 01066_ R-06 Scavenger collects Prototype Energy Gun. 01069_ R-06 Scavenger collects Prototype Flight Unit. 01071_ Destroyed Lgt. Ion Engine. Map ----- +----------------------------------------------------+ | ?????????????????????????????????????????????????? | | ?????????????????????????????????????????????????? | | ?????????????????????????????????????????????????? | | ?????????????????????????????????????????????????? | | ?????????????????????????????????????????????????? | | ?????????????????????????????????????????????????? | | ???????????????????????? ??????????????????????? | | ??????????????????????## ??????????????????????? | | ??????????????????????## # ????????????????????? | | ?????????????????????? # # ????????????????????? | | ?????????????????????? # # ????????????????????? | | ?????????????????????? # # ????????????????????? | | ?????????????????????? + / ????????????????????? | | ?????????????????????? # s# ????????????????????? | | ?????????????????????? # s!# ????????????????????? | | ?????????????????????? #r[s# ????????????????????? | | ?????????????????????? #k=%# ????????????????????? | | ??????????????????????##s =##????????????????????? | | ??????????????????????##=! ##????????????????????? | | ??????????????????????##%=*##????????????????????? | | ??????????????????????##*= ##????????????????????? | | ???????????????####?####%%=##????????????????????? | | ???????????????####?####*[%##?#################??? | | ???????????????## ##%=*##?#################??? | | ???????????????## """ ##==*##?## ##??? | | ???????????????## """ ##=@*##?## =##??? | | ???????""" """ ## """ ##!! ##?## ##??? | | ?????############ """ ##! ##?## """"" """"" ##??? | | ?????## T ## ## ##### """"" """"" ##??? | | ?????## """ ## |##u ##### """"" """"" ##??? | | ?????## """ ####+### ##########+#######???? | | ?????## """ # ? ####???? | | ?????## ! +% T ##?????? | | ?????## #/ ##?????? | | ?????## ]]] ######## ################?????? | | ?????## ]]] ##########+##################?????? | | ?????## ]]%= ##???? ???????????????????? | | ?????######[#####????? ??????????????????????? | | ?????############??"S """ """??????????????????? | | ?????????####??????""" """ """??????????????????? | | ?????????????????## "" """ """??????????????????? | | ?????????????????## ???????????????????? | | ?????????????????#############???????????????????? | | | | | | | | | | | | | | | +----------------------------------------------------+ Best States ------------- Heat Dissipation 42 Energy Generation 12 Energy Capacity 265 Matter Stores 300 Matter Capacity 300 Sight Range 16 Robot Scan Range 14 Terrain Scan Density 10 Additional Mass Support 6 Resistance: KI 20 Resistance: TH 20 Resistance: EX 20 Resistance: EM 20 Resistance: I 20 Resistance: S 20 Resistance: P 20 Evasion (%) 40 Recoil Reduction 2 Offensive Hacking 10 Item Schematics ----------------- None Robot Schematics ------------------ None Fabricated ------------ Nothing Alien Tech Used ----------------- None Achievements -------------- None Challenges ------------ None Game ------ Seed ScrapReflectiveManipulator Manual? 0 Play Time 00:14:36 Cumulative 15.9 hours Start 2024.08.07 @ 18:14:25 End 2024.08.07 @ 18:28:51 Sessions 1 Manual Loads 0 Difficulty Adventurer Special Mode None Game No. 38 Rogue 37 Adventurer 1 Explorer 0 Win Type - Total 0 Types 0/0/0/0/0/0/0/0/0 Lore% 9 Gallery% 18 Achievement% 25 Wizard Run 0 Options --------- Layout 0 ASCII 0 Keyboard 0 Movement Mouse Keybinds 0 Fullscreen 1 Font 36/Smallcaps Map View 76x50 Zoom Use 0% Tactical HUD 1 Map Filters NONE Filters NONE Steam 1 RUN: eb5fc96a-29ae-4495-af93-0fd1683a9962